bitfinex-derivatives/quotes_ETHF0:USTF0_20250430
["timestamp","ask_amount","ask_price","bid_price","bid_amount"]
[1746029915253,1.13705,1758.9,1758.8,1.13701]
[1746029915454,2.5781,1758.9,1758.8,1.13701]
[1746029915657,3.71511,1758.9,1758.8,1.13701]
[1746029915961,2.5781,1758.9,1758.8,1.13701]
[1746029916148,3.71511,1758.9,1758.8,1.13701]
[1746029916465,4.15629288,1758.9,1758.8,1.13701]
[1746029916959,4.15629288,1758.9,1758.7,1.13709]
[1746029916960,1.13712,1758.8,1758.7,1.13709]
[1746029917152,3.35030288,1758.8,1758.7,1.13709]
[1746029918362,1.13721,1758.6,1758.5,11.37410456]
[1746029918966,2.4743,1758.6,1758.5,12.51136456]
[1746029919155,2.4743,1758.6,1758.5,1.13726]
[1746029919657,2.4743,1758.6,1758.5,2.84166]
[1746029920458,3.61151,1758.6,1758.5,2.84166]
[1746029920665,1.13727,1758.5,1758.4,40.8]
[1746029920857,1.13735,1758.4,1758.3,1.13734]
[1746029921360,1.1374,1758.3,1758.2,11.37410456]
[1746029921659,5.00831159,1758.3,1758.2,11.37410456]
[1746029922162,10.00831159,1758.3,1758.2,11.37410456]
[1746029922361,10.00819297,1758.3,1758.2,11.37410456]
[1746029923060,10.5041447,1758.3,1758.2,11.37410456]
[1746029923463,1.13763,1758.0,1757.9,1.13761]
[1746029923663,1.13766,1757.9,1757.8,12.51178456]
[1746029923867,4.56026,1757.9,1757.8,12.51178456]
[1746029924062,3.4226,1757.9,1757.8,12.51178456]
[1746029924453,3.91855173,1757.9,1757.8,14.11458456]
[1746029925866,3.91855173,1757.9,1757.8,12.51178456]
[1746029926065,3.91855173,1757.9,1757.8,14.11458456]
[1746029926659,0.49595173,1757.9,1757.8,14.11458456]
[1746029927059,0.49595173,1757.9,1757.8,2.74048]
[1746029928965,3.74,1758.4,1758.1,1.13753]
[1746029929160,4.87734,1758.4,1758.3,1.1374]
[1746029929363,5.4164,1758.4,1758.3,1.1374]
[1746029929561,6.55374,1758.4,1758.3,1.1374]
[1746029932262,1.1374,1758.3,1758.2,2.89881]
[1746029932561,2.7911,1758.3,1758.2,2.89881]
[1746029932866,3.74,1758.4,1758.3,1.1374]
[1746029933067,1.6777,1758.6,1758.3,4.53457]
[1746029933268,3.2078,1758.7,1758.6,1.13721]
[1746029933465,4.34494,1758.7,1758.6,1.13721]
[1746029933666,6.00434,1758.7,1758.6,1.13721]
[1746029934459,4.8672,1758.7,1758.6,1.13721]
[1746029934665,6.00434,1758.7,1758.6,1.13721]
[1746029936769,4.8672,1758.7,1758.6,1.13721]
[1746029936970,6.00434,1758.7,1758.6,1.13721]
[1746029937974,1.13721,1758.6,1758.5,2.74712]
[1746029938365,3.70681,1758.6,1758.5,2.74712]
[1746029939173,3.70681,1758.6,1758.5,1.13722]
[1746029941068,2.5696,1758.6,1758.5,1.13722]
[1746029941271,2.5696,1758.6,1758.5,2.75122]
[1746029941474,4.25910848,1758.6,1758.5,2.75122]
[1746029941773,0.55229848,1758.6,1758.5,2.75122]
[1746029942180,0.55229848,1758.6,1758.5,7.75122]
[1746029942472,6.54655,1759.0,1758.9,1.13701]
[1746029942671,5.74535,1759.0,1758.9,1.13701]
[1746029943171,1.13701,1758.9,1758.8,3.66462]
[1746029943571,5.74538,1759.0,1758.9,1.13701]
[1746029943768,1.13707,1758.9,1758.8,1.13703]
[1746029943973,5.19607,1758.9,1758.8,1.13703]
[1746029944171,5.19607,1758.9,1758.8,2.84323]
[1746029944371,5.63683716,1758.9,1758.8,2.84323]
[1746029944568,1.13708,1758.8,1758.7,1.99743]
[1746029944869,1.13719,1758.7,1758.6,1.13715]
[1746029945068,3.74,1758.7,1758.6,1.13715]
[1746029945273,4.87714,1758.7,1758.6,1.13715]
[1746029945465,3.74,1758.7,1758.6,2.81165]
[1746029946475,1.88495,1758.9,1758.6,1.6745]
[1746029946674,5.4324,1760.0,1759.8,1.13643]
[1746029947371,8.6402,1760.0,1759.8,1.13643]
[1746029947871,10.50885886,1759.9,1759.7,3.64186]
[1746029948075,3.2078,1759.8,1759.7,1.13647]
[1746029948270,9.37248886,1759.9,1759.6,0.8264]
[1746029948466,7.8225,1760.0,1759.9,1.13637]
[1746029948871,5.2198,1760.0,1759.9,1.13637]
[1746029949073,4.0835,1760.0,1759.9,1.13637]
[1746029950581,2.012,1760.0,1759.9,1.13637]
[1746029950875,0.8757,1760.0,1759.9,1.13637]
[1746029951277,2.012,1760.0,1759.9,1.13637]
[1746029951779,0.8757,1760.0,1759.9,1.13637]
[1746029952077,2.012,1760.0,1759.9,1.13637]
[1746029952277,4.7037,1760.0,1759.9,1.13637]
[1746029954679,5.19786968,1760.0,1759.9,1.13637]
[1746029955183,1.36986968,1760.0,1759.9,1.13637]
[1746029956585,2.50616968,1760.0,1759.9,1.13637]
[1746029956777,1.36986968,1760.0,1759.9,1.13637]
[1746029957883,2.50616968,1760.0,1759.9,1.13637]
[1746029958186,1.13643,1759.9,1759.8,1.13641]
[1746029958385,5.21985,1760.0,1759.9,1.13637]
[1746029958777,5.71410947,1760.0,1759.9,1.13637]
[1746029959086,9.54210947,1760.0,1759.9,1.13637]
[1746029959279,8.40575947,1760.0,1759.9,1.13637]
[1746029960084,3.70205947,1760.0,1759.9,2.78157]
[1746029960483,0.49425947,1760.0,1759.9,2.78157]
[1746029961888,0.49425947,1760.0,1759.9,5.98937]
[1746029962284,0.49425947,1760.0,1759.9,2.78157]
[1746029962686,2.13735947,1760.0,1759.9,2.78157]
[1746029963792,3.27367947,1760.0,1759.9,1.13637]
[1746029963989,3.27367947,1760.0,1759.9,2.87797]
[1746029964682,2.84097,1759.9,1759.4,6.04952]
[1746029964885,1.13655,1759.7,1759.6,1.13651]
[1746029965085,1.63080947,1759.7,1759.6,1.13651]
[1746029965288,3.34500947,1759.7,1759.6,1.13651]
[1746029965680,2.20845947,1759.7,1759.6,1.13651]
[1746029966391,2.84148,1759.6,1759.0,5.68452]
[1746029966595,2.84148,1759.6,1759.4,1.13669]
[1746029966596,4.6549,1759.5,1759.4,1.13669]
[1746029966892,4.6549,1759.5,1759.1,2.84221]
[1746029966893,1.13675,1759.4,1759.3,1.13672]
[1746029967100,2.90875,1759.4,1759.3,1.13672]
[1746029967286,5.6,1759.4,1759.3,1.13672]
[1746029967486,6.09425947,1759.4,1759.3,1.13672]
[1746029967785,4.32225947,1759.4,1759.3,1.13672]
[1746029967988,4.32225947,1759.4,1759.3,1.99342]
[1746029968187,0.49425947,1759.4,1759.3,3.61792]
[1746029968492,0.49425947,1759.4,1759.3,4.49772]
[1746029972001,3.70205947,1759.4,1759.3,1.13672]
[1746029972201,9.29685947,1759.4,1759.3,1.13672]
[1746029972501,1.13676,1759.3,1759.2,1.13677]
[1746029972696,2.90356,1759.3,1759.2,1.13677]
[1746029973002,1.13682,1759.2,1759.1,1.6503]
[1746029973196,2.4786,1759.2,1759.1,2.78718]
[1746029973395,2.97285947,1759.2,1759.1,2.78718]
[1746029974003,4.10967947,1759.2,1759.1,2.78718]
[1746029974405,2.97285947,1759.2,1759.1,2.78718]
[1746029974903,4.10967947,1759.2,1759.1,2.78718]
[1746029975507,0.49425947,1759.2,1759.1,2.78718]
[1746029976393,2.17365947,1759.2,1759.1,2.78718]
[1746029977398,0.49425947,1759.2,1759.1,2.78718]
[1746029980902,4.0747,1759.7,1759.6,1.13656]
[1746029981109,0.8669,1759.7,1759.6,1.13656]
[1746029981499,3.708,1759.7,1759.6,1.13656]
[1746029981700,2.5715,1759.7,1759.6,1.13656]
[1746029982000,2.5715,1759.7,1759.6,2.82886]
[1746029982707,3.708,1759.7,1759.6,2.82886]
[1746029982907,6.9158,1759.7,1759.6,1.6923]
[1746029983103,1.13656,1759.6,1759.5,1.13658]
[1746029983410,2.90546,1759.6,1759.5,1.13658]
[1746029983901,2.90546,1759.6,1759.5,2.74308]
[1746029985111,1.7689,1759.6,1759.5,2.74308]
[1746029985605,2.90546,1759.6,1759.5,2.74308]
[1746029986706,1.7689,1759.6,1759.5,2.74308]
[1746029988306,3.2078,1759.7,1759.6,1.13656]
[1746029988602,3.2078,1759.7,1759.6,2.90326]
[1746029988802,6.66364,1759.8,1759.7,1.1365]
[1746029991710,1.13656,1759.7,1759.6,1.13652]
[1746029991905,5.97376,1759.7,1759.6,1.13652]
[1746029993412,6.45947385,1759.7,1759.6,1.13652]
[1746029995010,6.45947385,1759.7,1759.5,1.6496]
[1746029995011,1.13656,1759.6,1759.5,1.13656]
[1746029995214,4.21937385,1759.6,1759.5,1.13656]
[1746030000308,4.21937385,1759.6,1759.5,2.78426]
[1746030000799,0.48571385,1759.6,1759.5,2.78426]
[1746030002413,1.62227385,1759.6,1759.5,2.78426]
[1746030002911,3.24467385,1759.6,1759.5,2.78426]
[1746030004417,3.2078,1760.2,1759.7,2.84125]
[1746030004713,4.6356,1760.1,1760.0,1.1363]
[1746030005105,5.77184,1760.1,1760.0,2.7895]
[1746030005301,4.6356,1760.1,1760.0,2.7895]
[1746030005705,3.791,1760.1,1760.0,2.7895]
[1746030007014,14.86148886,1760.3,1760.2,1.13617]
[1746030007708,15.99764886,1760.3,1760.2,1.13617]
[1746030007909,17.66874886,1760.3,1760.2,1.13617]
[1746030008112,21.49674886,1760.3,1760.2,1.13617]
[1746030008714,1.13619,1760.2,1760.1,1.13618]
[1746030008910,1.6711,1760.2,1760.1,1.13618]
[1746030009917,2.80727,1760.2,1760.1,1.13618]
[1746030010604,1.6711,1760.2,1760.1,1.13618]
[1746030012017,2.80727,1760.2,1760.1,1.13618]
[1746030012220,1.13624,1760.1,1760.0,2.77275]
[1746030012416,2.89764,1760.1,1760.0,2.77275]
[1746030012718,1.7614,1760.1,1760.0,2.77275]
[1746030013312,6.62516,1760.3,1760.2,1.13617]
[1746030013512,7.2023,1760.3,1760.2,1.13617]
[1746030013917,7.2023,1760.3,1760.2,2.84737]
[1746030014612,3.791,1760.3,1760.2,2.84737]
[1746030015815,4.92711,1760.3,1760.2,2.84737]
[1746030016020,5.5055,1760.3,1760.2,2.84737]
[1746030016522,5.97630522,1760.3,1760.2,2.84737]
[1746030016821,7.11241522,1760.3,1760.2,2.84737]
[1746030017117,1.13617,1760.2,1760.1,1.6607]
[1746030017320,4.53547,1760.2,1760.1,2.79694]
[1746030017623,5.00627522,1760.2,1760.1,2.79694]
[1746030017923,0.47080522,1760.2,1760.1,2.79694]
[1746030018916,1.60697522,1760.2,1760.1,2.79694]
[1746030019519,3.35847522,1760.2,1760.1,2.79694]
[1746030021827,2.84066,1760.1,1759.5,3.2078]
[1746030022126,4.34436,1759.6,1759.5,1.704]
[1746030022419,1.13662,1759.5,1759.4,9.32317334]
[1746030022625,8.55120522,1759.6,1759.5,1.13662]
[1746030022811,5.34340522,1759.6,1759.5,2.88172]
[1746030023017,4.20680522,1759.6,1759.5,2.88172]
[1746030023316,5.34336522,1759.6,1759.5,2.88172]
[1746030023511,7.01466522,1759.6,1759.5,2.88172]
[1746030024029,1.13662,1759.5,1759.4,7.57807334]
[1746030024322,4.12702522,1759.5,1759.4,7.57807334]
[1746030025517,1.13675,1759.3,1759.2,43.68187]
[1746030025927,4.87375,1759.3,1759.2,43.68187]
[1746030026125,6.94505522,1759.3,1759.2,43.68187]
[1746030027129,1.13695,1759.0,1758.9,1.6403]
[1746030027433,4.87395,1759.0,1758.9,4.37961]
[1746030027726,5.34475522,1759.0,1758.9,4.37961]
[1746030028432,1.13701,1758.9,1758.8,48.37807334]
[1746030028726,1.13701,1758.9,1758.8,49.51515334]
[1746030028927,1.13701,1758.9,1758.8,51.20955334]
[1746030029428,2.89991,1758.9,1758.8,9.27247334]
[1746030029630,3.37071522,1758.9,1758.8,10.40955334]
[1746030030026,3.37071522,1758.9,1758.8,2.83148]
[1746030032226,3.37071522,1758.9,1758.8,1.6944]
[1746030032430,1.13714,1758.7,1758.6,2.78486]
[1746030032625,2.77723,1758.8,1758.7,1.13714]
[1746030032830,2.77723,1758.8,1758.7,2.77344]
[1746030033130,0.47080522,1758.8,1758.7,2.77344]
[1746030033432,3.737,1759.0,1758.9,1.13701]
[1746030033732,3.737,1759.0,1758.9,4.34481]
[1746030034233,3.737,1759.0,1758.9,1.98851]
[1746030036334,4.87395,1759.0,1758.9,0.8515]
[1746030036633,6.9448,1759.0,1758.8,1.13705]
[1746030036821,2.76397,1758.9,1758.8,1.13705]
[1746030037028,2.76397,1758.9,1758.8,2.87885]
[1746030038533,1.6269,1758.9,1758.8,2.87885]
[1746030038734,8.0818,1759.0,1758.9,1.13701]
[1746030038936,9.7087,1759.0,1758.9,2.87881]
[1746030039823,9.7087,1759.0,1758.9,1.7418]
[1746030040635,9.7087,1759.0,1758.9,2.87881]
[1746030040933,9.7087,1759.0,1758.9,1.7418]
[1746030041434,1.13708,1758.8,1758.7,1.97489]
[1746030041629,1.13708,1758.8,1758.7,3.60919]
[1746030041833,1.13708,1758.8,1758.7,3.60924]
[1746030042133,1.13708,1758.8,1758.7,2.77144]
[1746030042432,1.98038,1758.8,1758.7,1.6343]
[1746030042636,1.98038,1758.8,1758.7,2.77144]
[1746030043129,1.13721,1758.6,1758.5,0.8702]
[1746030043334,1.13721,1758.6,1758.5,3.61875]
[1746030043633,7.32929,1758.7,1758.6,1.13721]
[1746030043832,7.32929,1758.7,1758.6,2.74851]
[1746030044426,7.32929,1758.7,1758.6,1.6113]
[1746030044630,7.32929,1758.7,1758.6,2.74851]
[1746030044831,1.13723,1758.6,1758.5,1.13725]
[1746030045033,2.76883,1758.6,1758.5,1.13725]
[1746030045736,3.24089954,1758.6,1758.5,1.13725]
[1746030046036,5.31146954,1758.6,1758.5,1.13725]
[1746030046332,6.44867954,1758.6,1758.5,1.13725]
[1746030046931,2.10366954,1758.6,1758.5,1.13725]
[1746030047330,2.10366954,1758.6,1758.5,2.81365]
[1746030048328,3.24087954,1758.6,1758.5,2.81365]
[1746030048528,5.31146954,1758.6,1758.5,1.13725]
[1746030048732,6.44867954,1758.6,1758.5,1.13725]
[1746030049830,2.10366954,1758.6,1758.5,1.13725]
[1746030050025,3.24087954,1758.6,1758.5,1.13725]
[1746030050439,2.10366954,1758.6,1758.5,1.13725]
[1746030050931,2.10366954,1758.6,1758.5,1.95855]
[1746030052036,0.47206954,1758.6,1758.5,1.95855]
[1746030052331,9.54e-06,1758.6,1758.5,6.95855]
[1746030052531,9.54e-06,1758.6,1758.5,8.72105]
[1746030054734,4.0832,1759.2,1759.1,1.13688]
[1746030055046,10.392,1759.4,1759.3,1.13671]
[1746030055337,10.392,1759.4,1759.2,2.01199]
[1746030055636,1.13675,1759.3,1759.2,2.6106]
[1746030055841,2.85005,1759.3,1759.2,2.6106]
[1746030056029,2.85005,1759.3,1759.2,3.74737]
[1746030056430,2.85005,1759.3,1759.2,2.87217]
[1746030056730,2.85005,1759.3,1759.2,1.13677]
[1746030057530,1.7133,1759.3,1759.2,2.87217]
[1746030057929,2.85005,1759.3,1759.2,2.87217]
[1746030058438,1.7133,1759.3,1759.2,2.87217]
[1746030058930,2.85005,1759.3,1759.2,2.87217]
[1746030059541,1.7133,1759.3,1759.2,2.87217]
[1746030060024,6.9298,1759.4,1759.3,1.13675]
[1746030060230,3.722,1759.4,1759.3,3.66805]
[1746030060837,4.85869,1759.4,1759.3,3.66805]
[1746030061038,4.85869,1759.4,1759.3,1.13675]
[1746030061245,5.69529,1759.4,1759.3,1.13675]
[1746030062032,4.5586,1759.4,1759.3,1.13675]
[1746030062234,3.722,1759.4,1759.3,2.01825]
[1746030062733,3.722,1759.4,1759.3,3.76195]
[1746030064833,4.85869,1759.4,1759.3,3.76195]
[1746030065132,1.13682,1759.3,1759.2,1.1368]
[1746030065337,3.63732,1759.3,1759.2,1.1368]
[1746030066338,1.13682,1759.2,1759.1,3.63576]
[1746030066637,2.80272,1759.2,1759.1,3.63576]
[1746030067135,3.27127688,1759.2,1759.1,3.63576]
[1746030067336,2.13445688,1759.2,1759.1,3.63576]
[1746030068737,0.46855688,1759.2,1759.1,3.63576]
[1746030070142,1.60537688,1759.2,1759.1,3.63576]
[1746030070340,3.36857688,1759.2,1759.1,3.63576]
[1746030070531,2.23175688,1759.2,1759.1,3.63576]
[1746030070731,0.46855688,1759.2,1759.1,3.63576]
[1746030074842,4.5467,1759.6,1759.5,1.13662]
[1746030075337,2.4889,1759.7,1759.6,1.13656]
[1746030075640,12.58028886,1760.1,1760.0,1.1363]
[1746030075841,9.37248886,1760.1,1760.0,1.1363]
[1746030076037,9.37248886,1760.1,1760.0,4.3441]
[1746030076636,9.37248886,1760.3,1760.2,1.13617]
[1746030077137,9.37248886,1760.3,1760.2,4.34397]
[1746030077338,9.37248886,1760.3,1760.2,5.95607]
[1746030080443,11.23271057,1760.6,1760.5,1.13598]
[1746030080638,3.2078,1760.7,1760.6,1.13591]
[1746030081145,3.2078,1760.7,1760.6,41.93591]
[1746030081942,1.6318,1760.8,1760.7,1.13585]
[1746030082244,6.9268,1760.9,1760.8,1.13579]
[1746030082437,0.8578,1761.0,1760.9,1.13572]
[1746030082438,3.72317,1761.0,1760.9,1.13572]
[1746030083238,7.55117,1761.0,1760.9,1.13572]
[1746030084636,6.4155,1761.0,1760.9,1.13572]
[1746030085049,7.55116,1761.0,1760.9,1.13572]
[1746030085747,5.5577,1761.0,1760.9,1.13572]
[1746030086247,7.8078,1761.1,1761.0,1.13566]
[1746030086451,10.68209,1761.1,1761.0,1.13566]
[1746030087150,14.97145046,1761.1,1761.0,1.13566]
[1746030087342,13.83586046,1761.1,1761.0,1.13566]
[1746030087647,6.02806046,1761.1,1761.0,1.13566]
[1746030087948,4.28936046,1761.1,1761.0,1.13566]
[1746030088147,0.46136046,1761.1,1761.0,1.13566]
[1746030088347,2.17036046,1761.1,1761.0,1.13566]
[1746030088846,1.709,1761.1,1761.0,1.13566]
[1746030089143,7.7977,1761.3,1761.2,1.13553]
[1746030089343,9.5067,1761.3,1761.2,1.13553]
[1746030089544,11.10324347,1761.3,1761.2,1.13553]
[1746030089948,1.13553,1761.2,1761.1,1.13554]
[1746030090143,2.17008347,1761.2,1761.1,1.13554]
[1746030090845,1.13559,1761.1,1761.0,1.13561]
[1746030091049,2.84459,1761.1,1761.0,1.13561]
[1746030091247,6.67259,1761.1,1761.0,1.13561]
[1746030091549,7.13367347,1761.1,1761.0,1.13561]
[1746030093542,1.1357,1761.0,1760.9,1.13567]
[1746030093738,3.6929,1761.0,1760.9,1.13567]
[1746030093946,4.15398347,1761.0,1760.9,1.13567]
[1746030094149,7.98198347,1761.0,1760.9,1.13567]
[1746030094450,1.136,1760.6,1760.5,1.13595]
[1746030094654,8.0607,1760.7,1760.6,1.13591]
[1746030095144,11.8887,1760.7,1760.6,1.13591]
[1746030095342,12.34978347,1760.7,1760.6,1.13591]
[1746030095849,1.13595,1760.6,1760.4,45.24857]
[1746030096045,3.61435,1760.6,1760.5,1.13592]
[1746030096351,2.4784,1760.6,1760.5,1.13592]
[1746030096546,2.93981233,1760.6,1760.5,1.13592]
[1746030097050,0.46141233,1760.6,1760.5,1.13592]
[1746030097255,0.46141233,1760.6,1760.5,2.74442]
[1746030097940,2.15541233,1760.6,1760.5,2.74442]
[1746030098551,3.29132233,1760.6,1760.5,2.74442]
[1746030100154,7.11932233,1760.6,1760.5,2.74442]
[1746030100354,4.28941233,1760.6,1760.5,2.74442]
[1746030101353,0.4648174,1760.6,1760.5,2.74442]
[1746030106553,7.4e-06,1760.6,1760.5,2.74442]
[1746030106753,4.5231,1761.0,1760.9,1.13572]
[1746030106960,2.4474,1761.1,1761.0,1.13566]
[1746030107152,3.716,1761.2,1761.1,1.13559]
[1746030107353,3.716,1761.2,1761.1,2.85609]
[1746030107953,5.3472,1761.2,1761.1,2.85609]
[1746030109056,6.48273,1761.2,1761.1,2.85609]
[1746030109361,5.3472,1761.2,1761.1,2.85609]
[1746030110061,6.48273,1761.2,1761.1,1.13559]
[1746030110764,5.3472,1761.2,1761.1,1.13559]
[1746030110961,6.48273,1761.2,1761.1,1.13559]
[1746030111266,9.1752,1761.2,1761.1,1.13559]
[1746030111657,9.1752,1761.2,1761.1,2.86499]
[1746030112261,5.3472,1761.2,1761.1,2.86499]
[1746030113968,3.716,1761.2,1761.1,2.86499]
[1746030114168,3.2078,1761.3,1761.2,1.13553]
[1746030114371,3.2078,1761.3,1761.2,3.69483]
[1746030114963,4.8791,1761.3,1761.2,3.69483]
[1746030116158,6.01456,1761.3,1761.2,3.69483]
[1746030116365,4.8791,1761.3,1761.2,3.69483]
[1746030117171,6.01456,1761.3,1761.2,1.13553]
[1746030117669,4.8791,1761.3,1761.2,1.13553]
[1746030117869,6.01456,1761.3,1761.2,1.13553]
[1746030118066,9.84256,1761.3,1761.2,1.13553]
[1746030118866,8.7071,1761.3,1761.2,1.13553]
[1746030119066,9.1630695,1761.3,1761.2,1.13553]
[1746030119972,10.2985295,1761.3,1761.2,1.13553]
[1746030120471,9.1630695,1761.3,1761.2,1.13553]
[1746030120681,10.2985295,1761.3,1761.2,1.13553]
[1746030120975,9.1630695,1761.3,1761.2,1.13553]
[1746030121480,10.2985295,1761.3,1761.2,1.13553]
[1746030122173,9.1630695,1761.3,1761.2,1.13553]
[1746030122579,7.4917695,1761.3,1761.2,1.13553]
[1746030123277,0.4559695,1761.3,1761.2,2.86853]
[1746030125572,2.1536695,1761.3,1761.2,2.86853]
[1746030125768,2.1536695,1761.3,1761.0,40.8]
[1746030125973,3.2078,1761.1,1760.7,4.50571]
[1746030126279,1.13575,1760.9,1760.8,1.13572]
[1746030126577,3.69761,1761.0,1760.9,1.13572]
[1746030126775,1.13579,1760.9,1760.8,11.37410456]
[1746030126977,9.75629,1760.9,1760.8,11.37410456]
[1746030127177,13.58429,1760.9,1760.8,11.37410456]
[1746030127478,19.03960113,1760.9,1760.8,11.37410456]
[1746030128774,19.03960113,1760.9,1760.8,12.50989456]
[1746030128976,19.03960113,1760.9,1760.8,11.37410456]
[1746030129175,14.03960113,1760.9,1760.8,11.37410456]
[1746030129474,10.32460113,1760.9,1760.8,12.50989456]
[1746030129777,12.90381113,1760.9,1760.8,1.13579]
[1746030129980,9.18881113,1760.9,1760.8,1.13579]
[1746030130579,4.28331113,1760.9,1760.8,2.90119]
[1746030131180,0.45531113,1760.9,1760.8,2.90119]
[1746030131575,0.45531113,1760.9,1760.8,7.90119]
[1746030133084,0.45531113,1760.9,1760.8,2.90119]
[1746030135282,2.86449,1761.1,1761.0,1.13566]
[1746030136183,6.69249,1761.1,1761.0,1.13566]
[1746030138386,5.5569,1761.1,1761.0,1.13566]
[1746030139090,3.828,1761.1,1761.0,1.13566]
[1746030140184,3.61513,1761.2,1761.1,1.13559]
[1746030141184,7.44313,1761.2,1761.1,1.13559]
[1746030143292,1.13564,1761.1,1761.0,1.1356]
[1746030143491,2.76704,1761.1,1761.0,1.1356]
[1746030144389,1.6314,1761.1,1761.0,1.1356]
[1746030144691,2.76699,1761.1,1761.0,1.1356]
[1746030144993,1.6314,1761.1,1761.0,1.1356]
[1746030145491,5.17386,1761.2,1761.1,1.13559]
[1746030145791,1.13566,1761.1,1761.0,1.13561]
[1746030146086,7.8663,1761.2,1761.1,1.13559]
[1746030146488,3.828,1761.2,1761.1,1.13559]
[1746030147085,3.716,1761.3,1761.2,1.13553]
[1746030147287,3.716,1761.3,1761.2,2.77073]
[1746030147792,4.85146,1761.3,1761.2,1.13553]
[1746030147993,6.56816,1761.3,1761.2,1.13553]
[1746030148191,10.39616,1761.3,1761.2,1.13553]
[1746030148796,11.24646,1761.3,1761.2,1.13553]
[1746030148997,10.111,1761.3,1761.2,1.13553]
[1746030149494,3.828,1761.3,1761.2,1.97193]
[1746030149889,3.828,1761.3,1761.2,3.65143]
[1746030150082,3.2078,1761.4,1761.3,1.13546]
[1746030150287,4.3432,1761.4,1761.3,2.81496]
[1746030150692,6.0093,1761.4,1761.3,2.81496]
[1746030151290,9.8373,1761.4,1761.3,2.81496]
[1746030151497,8.7019,1761.4,1761.3,2.81496]
[1746030151697,9.8373,1761.4,1761.3,2.81496]
[1746030152494,8.7019,1761.4,1761.3,2.81496]
[1746030152697,9.8373,1761.4,1761.3,2.81496]
[1746030152997,8.7019,1761.4,1761.3,2.81496]
[1746030153296,9.8373,1761.4,1761.3,2.81496]
[1746030155004,9.8373,1761.4,1761.3,1.13546]
[1746030155997,1.13559,1761.2,1761.1,1.13555]
[1746030156198,11.88539,1761.2,1761.1,1.13555]
[1746030156500,1.13562,1761.1,1761.0,1.13559]
[1746030156699,3.65662,1761.1,1761.0,1.13559]
[1746030157089,2.521,1761.1,1761.0,1.13559]
[1746030157294,6.349,1761.1,1761.0,2.84539]
[1746030157493,3.828,1761.1,1761.0,2.84539]
[1746030158195,2.83915,1761.0,1760.7,7.57397043]
[1746030158393,1.13585,1760.7,1760.6,1.13589]
[1746030158797,2.78725,1760.7,1760.6,1.13589]
[1746030159303,6.61525,1760.7,1760.6,1.13589]
[1746030160513,5.4794,1760.7,1760.6,1.13589]
[1746030160910,3.828,1760.7,1760.6,2.81909]
[1746030163713,3.828,1760.7,1760.6,6.02689]
[1746030163912,3.828,1760.7,1760.6,2.81909]
[1746030164118,0.8575,1761.0,1760.9,1.13572]
[1746030164317,4.0873,1761.2,1761.0,1.13566]
[1746030164516,2.4856,1761.3,1761.2,1.13553]
[1746030164819,3.2078,1761.4,1761.3,1.13546]
[1746030165119,7.0358,1761.4,1761.3,1.13546]
[1746030165616,7.0358,1761.4,1761.3,2.88436]
[1746030165817,4.9634,1761.4,1761.3,2.88436]
[1746030166019,6.5883,1761.4,1761.3,2.88436]
[1746030166219,5.4529,1761.4,1761.3,2.88436]
[1746030166413,8.6607,1761.4,1761.3,2.88436]
[1746030166819,5.4529,1761.4,1761.3,2.88436]
[1746030167213,3.828,1761.4,1761.3,2.88436]
[1746030169222,10.2799,1761.6,1761.5,1.13533]
[1746030169915,3.2078,1761.6,1761.5,1.13533]
[1746030170113,5.6819,1761.8,1761.7,1.13521]
[1746030170314,3.2078,1761.8,1761.7,1.13521]
[1746030170722,3.2078,1761.8,1761.7,2.82861]
[1746030171222,7.0358,1761.8,1761.7,2.82861]
[1746030172513,13.6964,1761.8,1761.4,3.2078]
[1746030172820,1.1353,1761.6,1761.5,1.13529]
[1746030173022,3.712,1761.6,1761.5,1.13529]
[1746030173223,7.54,1761.6,1761.5,1.13529]
[1746030173520,3.828,1761.6,1761.5,1.13529]
[1746030173915,3.828,1761.6,1761.5,2.83469]
[1746030176624,7.0358,1761.6,1761.5,2.83469]
[1746030176922,8.7713,1761.6,1761.4,1.99445]
[1746030177221,1.7355,1761.5,1761.4,1.13535]
[1746030177416,2.5378,1761.5,1761.4,1.13535]
[1746030178119,7.50113,1761.5,1761.3,1.7494]
[1746030178316,3.6765,1761.4,1761.3,1.13545]
[1746030178517,2.5411,1761.4,1761.3,1.13545]
[1746030179214,6.3691,1761.4,1761.3,1.13545]
[1746030179426,6.3691,1761.4,1761.3,2.88485]
[1746030180621,7.5045,1761.4,1761.3,2.88485]
[1746030180824,6.3691,1761.4,1761.3,2.88485]
[1746030181524,7.5045,1761.4,1761.3,2.88485]
[1746030181725,6.3691,1761.4,1761.3,2.88485]
[1746030181925,7.5045,1761.4,1761.3,2.88485]
[1746030182624,6.3691,1761.4,1761.3,2.88485]
[1746030183322,6.3691,1761.4,1761.2,1.13549]
[1746030183323,1.13553,1761.3,1761.2,1.13549]
[1746030183530,2.78743,1761.3,1761.2,1.13549]
[1746030183723,1.6519,1761.3,1761.2,1.13549]
[1746030183918,1.6519,1761.3,1761.2,2.80709]
[1746030184124,5.4799,1761.3,1761.2,2.80709]
[1746030186731,1.13553,1761.2,1761.1,1.13553]
[1746030186932,2.84403,1761.2,1761.1,1.13553]
[1746030187129,5.5365,1761.2,1761.1,1.13553]
[1746030187731,5.5365,1761.2,1761.1,2.74603]
[1746030189427,6.3535,1761.2,1761.1,2.74603]
[1746030190530,7.48903,1761.2,1761.1,2.74603]
[1746030191135,1.13573,1761.0,1760.9,1.13568]
[1746030191427,1.13585,1760.8,1760.7,1.1358]
[1746030191629,1.13585,1760.8,1760.7,41.9358]